fUSD/lending_fUSD_20260426
["ID","MTS","AMOUNT","RATE_DAILY","PERIOD"]
[421157845,1777184799523,500.0,7.444e-05,2]
[421157846,1777184812202,500.0,7.444e-05,2]
[421157847,1777184821976,195.76639402,7.444e-05,2]
[421157848,1777184822003,104.23360598,7.444e-05,2]
[421157849,1777184822099,150.0,7.444e-05,2]
[421157850,1777184823659,500.0,7.444e-05,2]
[421157851,1777184829258,207.0,7.444e-05,3]
[421157852,1777184835169,500.0,7.444e-05,2]
[421157853,1777184846783,500.0,7.444e-05,2]
[421157854,1777184858320,500.0,7.444e-05,2]
[421157855,1777184867822,9000.01,7.345e-05,2]
[421157856,1777184867851,10000.01,7.345e-05,2]
[421157857,1777184867879,10000.01,7.345e-05,2]
[421157858,1777184867906,5516.9838,7.345e-05,2]
[421157859,1777184868345,-250.0,7.445e-05,2]
[421157860,1777184869992,500.0,7.444e-05,2]
[421157861,1777184883290,-248.0,7.445e-05,2]
[421157862,1777184885333,500.0,7.444e-05,2]
[421157863,1777184887873,153.0,7.444e-05,3]
[421157864,1777184891021,200.0,7.4e-05,2]
[421157865,1777184898758,-152.0,7.446e-05,7]
[421157866,1777184901082,500.0,7.444e-05,2]
[421157867,1777184901120,500.0,7.444e-05,2]
[421157868,1777184901161,500.0,7.444e-05,2]
[421157869,1777184901199,500.0,7.444e-05,2]
[421157870,1777184901236,500.0,7.444e-05,2]
[421157871,1777184901273,500.0,7.444e-05,2]
[421157872,1777184901311,500.0,7.444e-05,2]
[421157873,1777184901355,500.0,7.444e-05,2]
[421157874,1777184901452,500.0,7.444e-05,2]
[421157875,1777184901497,500.0,7.444e-05,2]
[421157876,1777184901535,500.0,7.444e-05,2]
[421157877,1777184901959,500.0,7.444e-05,2]
[421157878,1777184901998,338.10959282,7.444e-05,2]
[421157879,1777184904549,470.52380976,7.444e-05,2]
[421157880,1777184914209,-251.0,7.711e-05,2]
[421157881,1777184915447,500.0,7.444e-05,2]
[421157882,1777184915501,500.0,7.444e-05,2]
[421157883,1777184929674,-598.595176,7.711e-05,2]
[421157884,1777184949074,189.0,7.711e-05,3]
[421157885,1777185012026,180.0,7.711e-05,3]
[421157886,1777185012075,163.0,7.711e-05,3]
[421157897,1777185032386,-300.0,7.944e-05,2]
[421157898,1777185032396,-1200.0,7.944e-05,2]
[421157899,1777185032407,-300.0,7.944e-05,2]
[421157900,1777185032417,-254.0,7.945e-05,2]
[421157901,1777185032427,-23267.897318,7.945e-05,2]
[421157902,1777185032437,-250.0,8.062e-05,2]
[421157903,1777185032447,-3192.062049,8.178e-05,2]
[421157904,1777185032458,-250.0,8.191e-05,2]
[421157905,1777185032469,-280.0,8.219e-05,2]
[421157906,1777185032479,-441.0,8.714e-05,2]
[421157907,1777185032489,-243.0,8.739e-05,2]
[421157908,1777185032499,-1680.0,8.739e-05,2]
[421157909,1777185032509,-150.0,8.739e-05,2]
[421157910,1777185032519,-278.0,8.739e-05,2]
[421157911,1777185032528,-2500.0,8.74e-05,2]
[421157912,1777185032538,-2500.0,8.74e-05,2]
[421157913,1777185032549,-2500.0,8.74e-05,2]
[421157914,1777185032560,-2500.0,8.74e-05,2]
[421157915,1777185032570,-2500.0,8.74e-05,2]
[421157916,1777185032581,-300.0,8.74e-05,2]
[421157917,1777185032591,-300.0,8.74e-05,2]
[421157918,1777185032601,-300.21724868,8.74e-05,2]
[421157919,1777185032611,-500.0,8.74e-05,2]
[421157920,1777185032622,-500.0,8.74e-05,2]
[421157921,1777185032632,-500.0,8.74e-05,2]
[421157922,1777185032642,-500.0,8.74e-05,2]
[421157923,1777185032653,-250.0,8.74e-05,2]
[421157924,1777185032663,-208.0,8.765e-05,2]
[421157925,1777185032673,-307.0,8.965e-05,2]
[421157926,1777185032683,-930.0,9e-05,2]
[421157927,1777185032694,-495.0,9.062e-05,2]
[421157928,1777185032709,-1000.0,9.092e-05,2]
[421157929,1777185032719,-578.20924308,9.093e-05,2]
[421157930,1777185032731,-200.0,9.093e-05,2]
[421157931,1777185032742,-646.65982734,9.093e-05,2]
[421157932,1777185032752,-8565.75555911,9.093e-05,2]
[421157933,1777185032762,-1280.88388878,9.093e-05,2]
[421157934,1777185032772,-743.50770149,9.093e-05,2]
[421157935,1777185032782,-151.0,9.093e-05,2]
[421157936,1777185032792,-151.12206715,9.093e-05,2]
[421157937,1777185032802,-187.78006525,9.093e-05,2]
[421157938,1777185032812,-279.9045709,9.093e-05,2]
[421157940,1777185032822,-174.61919141,9.093e-05,2]
[421157941,1777185032832,-187.78006526,9.093e-05,2]
[421157942,1777185032842,-8882.6885148,9.148e-05,2]
[421157944,1777185032853,-151.0,9.148e-05,2]
[421157945,1777185032863,-9211.34798985,9.203e-05,2]
[421157946,1777185032873,-151.0,9.203e-05,2]
[421157947,1777185032882,-957.35270289,9.258e-05,2]
[421157948,1777185032892,-151.0,9.258e-05,2]
[421157949,1777185032902,-151.0,9.313e-05,2]
[421157950,1777185032912,-151.0,9.368e-05,2]
[421157951,1777185032922,-151.0,9.423e-05,2]
[421157952,1777185032932,-500.0,9.442e-05,2]
[421157953,1777185032942,-180.0,9.442e-05,3]
[421157954,1777185032952,-151.0,9.478e-05,2]
[421157955,1777185032962,-151.0,9.533e-05,2]
[421157956,1777185032971,-151.0,9.588e-05,2]
[421157957,1777185032982,-150.0,9.589e-05,2]
[421157958,1777185032991,-2351.0,9.612e-05,2]
[421157959,1777185033002,-255.0,9.613e-05,2]
[421157960,1777185033011,-200.0,9.641e-05,2]
[421157961,1777185033020,-1328.27659266,9.641e-05,2]
[421157962,1777185033031,-151.00000001,9.641e-05,2]
[421157963,1777185033040,-181.08010149,9.641e-05,2]
[421157964,1777185033050,-151.0,9.643e-05,2]
[421157965,1777185033060,-151.0,9.698e-05,2]
[421157966,1777185033070,-425.16184594,9.716e-05,2]
[421157967,1777185033080,-718.1714,9.726e-05,2]
[421157968,1777185033089,-151.0,9.753e-05,2]
[421157969,1777185033102,-151.0,9.808e-05,2]
[421157970,1777185033113,-201.28868678,0.00010189,2]
[421157971,1777185033123,-1377.42282659,0.00010189,2]
[421157972,1777185033132,-301.00020365,0.00010189,2]
[421157973,1777185033142,-269.13715183,0.000104,2]
[421157974,1777185033152,-465.15230112,0.000104,2]
[421157975,1777185033163,-530.91858442,0.000104,2]
[421157976,1777185033172,-507.72066437,0.000104,2]
[421157977,1777185033182,-217.56,0.00010448,2]
[421157978,1777185033192,-250.0,0.00010499,2]
[421157979,1777185033202,-500.0,0.000105,2]
[421157980,1777185033212,-489.0,0.00010567,5]
[421157981,1777185033223,-480.0,0.00010567,5]
[421157982,1777185033233,-3292.0,0.00010574,2]
[421157983,1777185033243,-345.0,0.00010574,2]
[421157984,1777185033252,-151.0,0.000106,2]
[421157985,1777185033263,-244.56252078,0.000106,2]
[421157986,1777185033273,-21252.9907347,0.000106,2]
[421157987,1777185033283,-3582.9259,0.000106,2]
[421157988,1777185033293,-2000.0,0.000106,2]
[421157989,1777185033303,-2000.0,0.000106,2]
[421157990,1777185033313,-2000.0,0.000106,2]
[421157991,1777185033323,-2000.0,0.000106,2]
[421157992,1777185033333,-2000.0,0.000106,2]
[421157993,1777185033342,-2000.0,0.000106,2]
[421157994,1777185033352,-2000.0,0.000106,2]
[421157995,1777185033362,-161.0,0.0001069,2]
[421157996,1777185033372,-151.0,0.00010697,2]
[421157997,1777185033382,-19829.60921367,0.000107,2]
[421157998,1777185033396,-1567.81565683,0.000107,2]
[421157999,1777185033525,-691.09079142,0.000107,2]
[421158000,1777185033627,-405.21062676,0.000107,2]
[421158001,1777185033641,-927.55529614,0.000107,2]
[421158002,1777185033729,-868.52832,0.000107,2]
[421158003,1777185033742,-343.29292514,0.000107,2]
[421158004,1777185033755,-1870.88949691,0.000107,2]
[421158005,1777185033768,-1015.04698736,0.000107,2]
[421158006,1777185033780,-333.2607817,0.000107,2]
[421158007,1777185033806,-19608.05400023,0.000107,2]
[421158008,1777185033819,-18222.90863187,0.000107,2]
[421158009,1777185033831,-8851.01212348,0.000107,2]
[421158010,1777185033843,-254.14013485,0.000107,2]
[421158011,1777185033855,-369.98931999,0.000107,2]
[421158012,1777185034990,9468.01,7.345e-05,2]
[421158013,1777185035016,10000.01,7.345e-05,2]
[421158014,1777185035042,10000.01,7.345e-05,2]
[421158015,1777185035070,10000.01,7.345e-05,2]
[421158016,1777185035096,10000.01,7.345e-05,2]
[421158017,1777185035123,10000.01,7.345e-05,2]
[421158018,1777185035150,10000.01,7.345e-05,2]
[421158019,1777185035176,10000.01,7.345e-05,2]
[421158021,1777185038936,-31764.34136703,7.345e-05,2]
[421158022,1777185038949,-48993.48432967,7.345e-05,2]
[421158023,1777185038961,-829.67010334,7.345e-05,2]
[421158024,1777185038974,-78035.0,7.345e-05,2]
[421158025,1777185038989,-446.26987052,7.345e-05,2]
[421158026,1777185039010,-1230.72968212,7.345e-05,2]
[421158110,1777185040561,-727.66793536,7.345e-05,2]
[421158111,1777185040573,-1386.70499995,7.345e-05,2]
[421158112,1777185040586,-277.1987,7.345e-05,2]
[421158113,1777185040620,-244462.16292121,7.345e-05,2]
[421158114,1777185040987,-356.90157413,7.345e-05,2]
[421158115,1777185041092,-628.81867767,7.345e-05,2]
[421158116,1777185041104,-2878.09324054,7.345e-05,2]
[421158123,1777185043412,-5038.18168835,7.345e-05,2]
[421158127,1777185043510,-841.89905726,7.345e-05,2]
[421158128,1777185043521,-630.18595764,7.345e-05,2]
[421158129,1777185043566,-41049.2077956,7.345e-05,2]
[421158130,1777185043828,-931.86771549,7.345e-05,2]
[421158131,1777185043840,-300787.9426143,7.345e-05,2]
[421158134,1777185046752,-41498.27906854,7.345e-05,2]
[421158135,1777185046766,-6245.44649934,7.345e-05,2]
[421158136,1777185046805,-5254.13617463,7.345e-05,2]
[421158137,1777185046863,-76979.92044294,7.345e-05,2]
[421158139,1777185050282,-143842.78898309,7.345e-05,2]
[421158140,1777185050294,-494.5,7.345e-05,2]
[421158141,1777185050309,-8999.99999353,7.345e-05,2]
[421158142,1777185050326,-760.0,7.345e-05,2]
[421158143,1777185050340,-20592.60526196,7.345e-05,2]
[421158144,1777185088752,361.545,7.198e-05,2]
[421158145,1777185088824,5212.243,7.198e-05,2]
[421158146,1777185120997,300.0,7.344e-05,2]
[421158147,1777185125295,172.0,7.198e-05,3]
[421158148,1777185125823,162.0,7.198e-05,3]
[421158149,1777185181886,150.0,7.344e-05,2]
[421158150,1777185186343,154.0,7.198e-05,3]
[421158151,1777185241205,300.0,7.344e-05,2]
[421158152,1777185245526,154.0,7.198e-05,3]
[421158153,1777185264804,768.0,7.344e-05,2]
[421158154,1777185301200,300.0,7.344e-05,2]
[421158155,1777185301672,1200.0,7.344e-05,2]
[421158156,1777185309175,163.0,7.344e-05,3]
[421158157,1777185314562,154.0,7.344e-05,3]
[421158158,1777185365419,449.222,7.344e-05,2]
[421158159,1777185365443,50.778,7.344e-05,2]
[421158160,1777185365524,500.0,7.344e-05,2]
[421158161,1777185365577,436.40462059,7.344e-05,2]
[421158162,1777185365775,500.0,7.344e-05,2]
[421158163,1777185367156,154.0,7.344e-05,3]
[421158164,1777185378566,500.0,7.344e-05,2]
[421158165,1777185378609,500.0,7.344e-05,2]
[421158166,1777185378651,500.0,7.344e-05,2]
[421158167,1777185378693,500.0,7.344e-05,2]
[421158168,1777185378733,500.0,7.344e-05,2]
[421158169,1777185378772,500.0,7.344e-05,2]
[421158170,1777185378812,500.0,7.344e-05,2]
[421158171,1777185378855,500.0,7.344e-05,2]
[421158172,1777185378895,500.0,7.344e-05,2]
[421158173,1777185378931,500.0,7.344e-05,2]
[421158174,1777185378967,500.0,7.344e-05,2]
[421158175,1777185379010,500.0,7.344e-05,2]
[421158176,1777185379066,500.0,7.344e-05,2]
[421158177,1777185379104,500.0,7.344e-05,2]
[421158178,1777185379142,500.0,7.344e-05,2]
[421158179,1777185379179,500.0,7.344e-05,2]
[421158180,1777185379216,358.82737941,7.344e-05,2]
[421158181,1777185379244,141.17262059,7.344e-05,2]
[421158182,1777185379283,500.0,7.344e-05,2]
[421158183,1777185379324,500.0,7.344e-05,2]
[421158184,1777185379362,500.0,7.344e-05,2]
[421158185,1777185379399,500.0,7.344e-05,2]
[421158186,1777185379440,500.0,7.344e-05,2]
[421158187,1777185379486,500.0,7.344e-05,2]
[421158188,1777185379524,500.0,7.344e-05,2]
[421158189,1777185379561,500.0,7.344e-05,2]
[421158190,1777185379606,500.0,7.344e-05,2]
[421158191,1777185379647,380.75339598,7.344e-05,2]
[421158192,1777185379686,500.0,7.344e-05,2]
[421158193,1777185379723,500.0,7.344e-05,2]
[421158194,1777185379761,500.0,7.344e-05,2]
[421158195,1777185381593,3478.08398343,7.335e-05,2]
[421158196,1777185381618,10000.01,7.335e-05,2]
[421158197,1777185381641,10000.01,7.335e-05,2]
[421158198,1777185381665,10000.01,7.335e-05,2]
[421158199,1777185381689,10000.01,7.335e-05,2]
[421158200,1777185381713,1008.86251626,7.335e-05,2]
[421158201,1777185394831,500.0,7.344e-05,2]
[421158202,1777185394878,500.0,7.344e-05,2]
[421158203,1777185394916,500.0,7.344e-05,2]
[421158204,1777185394959,500.0,7.344e-05,2]
[421158205,1777185394999,500.0,7.344e-05,2]
[421158206,1777185395040,500.0,7.344e-05,2]
[421158207,1777185395077,500.0,7.344e-05,2]
[421158208,1777185395113,500.0,7.344e-05,2]
[421158209,1777185395150,500.0,7.344e-05,2]
[421158210,1777185395190,500.0,7.344e-05,2]
[421158211,1777185395226,500.0,7.344e-05,2]
[421158212,1777185395263,500.0,7.344e-05,2]
[421158213,1777185395301,500.0,7.344e-05,2]
[421158214,1777185395338,500.0,7.344e-05,2]
[421158215,1777185395374,500.0,7.344e-05,2]
[421158216,1777185395413,500.0,7.344e-05,2]
[421158217,1777185395449,500.0,7.344e-05,2]
[421158218,1777185395488,491.14748374,7.344e-05,2]
[421158219,1777185395518,8.85251626,7.344e-05,2]
[421158220,1777185395567,500.0,7.344e-05,2]
[421158221,1777185395603,500.0,7.344e-05,2]
[421158222,1777185395640,500.0,7.344e-05,2]
[421158223,1777185395676,500.0,7.344e-05,2]
[421158224,1777185395714,500.0,7.344e-05,2]
[421158225,1777185396133,500.0,7.344e-05,2]
[421158226,1777185396171,500.0,7.344e-05,2]
[421158227,1777185396207,500.0,7.344e-05,2]
[421158228,1777185397035,380.75339598,7.344e-05,2]
[421158229,1777185397073,500.0,7.344e-05,2]
[421158230,1777185397109,500.0,7.344e-05,2]
[421158231,1777185397157,500.0,7.344e-05,2]
[421158232,1777185397200,500.0,7.344e-05,2]
[421158233,1777185397240,500.0,7.344e-05,2]
[421158234,1777185409263,161.38966675,7.344e-05,2]
[421158235,1777185416672,500.0,7.344e-05,2]
[421158236,1777185416711,500.0,7.344e-05,2]
[421158237,1777185416750,500.0,7.344e-05,2]
[421158238,1777185416789,500.0,7.344e-05,2]
[421158239,1777185416832,500.0,7.344e-05,2]
[421158240,1777185416876,449.01442101,7.344e-05,2]
[421158241,1777185416905,50.98557899,7.344e-05,2]
[421158242,1777185416949,500.0,7.344e-05,2]
[421158243,1777185416989,500.0,7.344e-05,2]
[421158244,1777185417026,500.0,7.344e-05,2]
[421158245,1777185417067,351.37474163,7.344e-05,2]
[421158246,1777185417119,500.0,7.344e-05,2]
[421158247,1777185417160,500.0,7.344e-05,2]
[421158248,1777185417198,500.0,7.344e-05,2]
[421158249,1777185417276,500.0,7.344e-05,2]
[421158250,1777185417341,500.0,7.344e-05,2]
[421158251,1777185420711,-2853.09809575,7.345e-05,2]
[421158252,1777185421340,300.0,7.344e-05,2]
[421158253,1777185424693,-9700.01,7.345e-05,2]
[421158254,1777185424966,-10000.01,7.345e-05,2]
[421158255,1777185425060,-10000.01,7.345e-05,2]
[421158256,1777185425182,-10000.01,7.345e-05,2]
[421158257,1777185425298,-10000.01,7.345e-05,2]
[421158258,1777185425421,-10000.01,7.345e-05,2]
[421158259,1777185425545,-10000.01,7.345e-05,2]
[421158260,1777185425648,-10000.01,7.345e-05,2]
[421158261,1777185425774,-10000.01,7.345e-05,2]
[421158262,1777185427803,-189.0,7.344e-05,3]
[421158263,1777185427845,-9622.01,7.345e-05,2]
[421158264,1777185453074,5111.17,6.592e-05,2]
[421158265,1777185492899,254.0,6.592e-05,3]
[421158266,1777185499927,154.0,6.592e-05,3]
[421158267,1777185547386,241.0,6.592e-05,3]
[421158268,1777185553488,154.0,6.592e-05,3]
[421158269,1777185570761,343.58722503,7.333e-05,2]
[421158270,1777185612921,229.0,7.333e-05,3]
[421158271,1777185613868,165.0,7.333e-05,3]
[421158272,1777185624581,154.0,7.333e-05,3]
[421158273,1777185667468,218.0,7.333e-05,3]
[421158274,1777185673265,154.0,7.333e-05,3]
[421158275,1777185727816,207.0,7.333e-05,3]
[421158276,1777185733882,155.0,7.333e-05,3]
[421158277,1777185755672,172.0,7.333e-05,3]
[421158278,1777185788130,196.0,7.333e-05,3]
[421158279,1777185847314,187.0,7.333e-05,3]
[421158280,1777185905875,165.0,7.333e-05,3]
[421158281,1777185908402,177.0,7.333e-05,3]
[421158282,1777185966721,168.0,7.333e-05,3]
[421158283,1777186027040,160.0,7.333e-05,3]
[421158284,1777186030460,8041.01,7.245e-05,2]
[421158285,1777186030487,10000.01,7.245e-05,2]
[421158286,1777186030515,10000.01,7.245e-05,2]
[421158287,1777186081851,150.0,7.244e-05,2]
[421158288,1777186082301,300.0,7.244e-05,2]
[421158289,1777186141338,300.0,7.244e-05,2]
[421158290,1777186150770,542.71015587,7.244e-05,2]
[421158291,1777186150812,308.09394173,7.244e-05,2]
[421158292,1777186150854,500.0,7.244e-05,2]
[421158293,1777186150904,500.0,7.244e-05,2]
[421158294,1777186150952,500.0,7.244e-05,2]
[421158295,1777186150999,500.0,7.244e-05,2]
[421158296,1777186151050,500.0,7.244e-05,2]
[421158297,1777186151099,500.0,7.244e-05,2]
[421158298,1777186151154,500.0,7.244e-05,2]
[421158299,1777186151199,500.0,7.244e-05,2]
[421158300,1777186151245,500.0,7.244e-05,2]
[421158301,1777186151740,500.0,7.244e-05,2]
[421158302,1777186151788,500.0,7.244e-05,2]
[421158303,1777186151834,500.0,7.244e-05,2]
[421158304,1777186151879,500.0,7.244e-05,2]
[421158305,1777186151923,500.0,7.244e-05,2]
[421158306,1777186151971,500.0,7.244e-05,2]
[421158307,1777186152019,500.0,7.244e-05,2]
[421158308,1777186152064,399.2059024,7.244e-05,2]
[421158309,1777186152095,100.7940976,7.244e-05,2]
[421158310,1777186152146,500.0,7.244e-05,2]
[421158311,1777186152191,500.0,7.244e-05,2]
[421158312,1777186152239,500.0,7.244e-05,2]
[421158313,1777186152293,500.0,7.244e-05,2]
[421158314,1777186152344,500.0,7.244e-05,2]
[421158315,1777186152388,500.0,7.244e-05,2]
[421158316,1777186152442,500.0,7.244e-05,2]
[421158317,1777186152485,500.0,7.244e-05,2]
[421158318,1777186152535,500.0,7.244e-05,2]
[421158319,1777186152580,500.0,7.244e-05,2]
[421158320,1777186152620,500.0,7.244e-05,2]
[421158321,1777186152659,500.0,7.244e-05,2]
[421158322,1777186152704,500.0,7.244e-05,2]
[421158323,1777186152743,500.0,7.244e-05,2]
[421158324,1777186152782,500.0,7.244e-05,2]
[421158325,1777186152825,500.0,7.244e-05,2]
[421158326,1777186152867,500.0,7.244e-05,2]
[421158327,1777186152931,500.0,7.244e-05,2]
[421158328,1777186152970,500.0,7.244e-05,2]
[421158329,1777186153015,399.2159024,7.244e-05,2]
[421158330,1777186153046,100.7840976,7.244e-05,2]
[421158331,1777186153095,500.0,7.244e-05,2]
[421158332,1777186153137,500.0,7.244e-05,2]
[421158333,1777186153182,500.0,7.244e-05,2]
[421158334,1777186153223,500.0,7.244e-05,2]
[421158335,1777186153264,500.0,7.244e-05,2]
[421158336,1777186153413,7399.2259024,1.31e-05,3]
[421158337,1777186153438,10000.01,1.31e-05,3]
[421158338,1777186153464,10000.01,1.31e-05,3]
[421158339,1777186153489,10000.01,1.31e-05,3]
[421158340,1777186153514,10000.01,1.31e-05,3]
[421158341,1777186153539,10000.01,1.31e-05,3]
[421158342,1777186153565,10000.01,1.31e-05,3]
[421158343,1777186153600,32357.64459699,1.31e-05,3]
[421158344,1777186164200,1200.0,7.244e-05,2]
[421158346,1777186231599,-267.37735194,7.243e-05,2]
[421158347,1777186231612,-32.62264806,7.243e-05,2]
[421158348,1777186231623,-1200.0,7.243e-05,2]
[421158349,1777186231634,-772.18801885,7.244e-05,2]
[421158350,1777186231643,-772.18801885,7.244e-05,2]
[421158351,1777186231652,-109.5511348,7.244e-05,2]
[421158352,1777186231669,-595.27753254,7.244e-05,2]
[421158353,1777186231682,-67.35935151,7.244e-05,2]
[421158354,1777186231692,-772.18801885,7.244e-05,2]
[421158355,1777186231701,-772.18801885,7.244e-05,2]
[421158356,1777186231711,-772.18801885,7.244e-05,2]
[421158357,1777186231721,-772.18801885,7.244e-05,2]
[421158358,1777186231732,-772.18801885,7.244e-05,2]
[421158359,1777186231741,-747.62470791,7.244e-05,2]
[421158360,1777186231754,-24.56331094,7.244e-05,2]
[421158361,1777186231764,-772.18801885,7.244e-05,2]
[421158362,1777186231773,-772.18801885,7.244e-05,2]
[421158363,1777186231783,-772.18801885,7.244e-05,2]
[421158364,1777186231793,-459.83924399,7.244e-05,2]
[421158365,1777186231805,-312.34877486,7.244e-05,2]
[421158366,1777186231815,-772.18801885,7.244e-05,2]
[421158367,1777186231825,-772.18801885,7.244e-05,2]
[421158368,1777186231835,-567.35414095,7.244e-05,2]
[421158369,1777186231847,-204.8338779,7.244e-05,2]
[421158370,1777186231857,-772.18801885,7.244e-05,2]
[421158371,1777186231866,-772.18801885,7.244e-05,2]
[421158372,1777186231876,-772.18801885,7.244e-05,2]
[421158373,1777186231886,-472.48261428,7.244e-05,2]
[421158374,1777186232081,-257.8752,7.244e-05,2]
[421158375,1777186232095,-41.83020457,7.244e-05,2]
[421158376,1777186232105,-772.18801885,7.244e-05,2]
[421158377,1777186232115,-772.18801885,7.244e-05,2]
[421158378,1777186232124,-772.18801885,7.244e-05,2]
[421158379,1777186232134,-772.18801885,7.244e-05,2]
[421158380,1777186232144,-772.18801885,7.244e-05,2]
[421158381,1777186232154,-772.18801885,7.244e-05,2]
[421158382,1777186232164,-346.02949168,7.244e-05,2]
[421158383,1777186232177,-426.15852717,7.244e-05,2]
[421158384,1777186232187,-772.18801885,7.244e-05,2]
[421158385,1777186232197,-772.18801885,7.244e-05,2]
[421158386,1777186232211,-772.18801885,7.244e-05,2]
[421158387,1777186232220,-772.18801885,7.244e-05,2]
[421158388,1777186232230,-772.18801885,7.244e-05,2]
[421158389,1777186232240,-772.18801885,7.244e-05,2]
[421158391,1777186232251,-772.18801885,7.244e-05,2]
[421158392,1777186232262,-739.19441025,7.244e-05,2]
[421158393,1777186232274,-32.9936086,7.244e-05,2]
[421158394,1777186232284,-293.03811432,7.244e-05,2]
[421158395,1777186232296,-264.00221638,7.244e-05,2]
[421158396,1777186232309,-215.14768815,7.244e-05,2]
[421158397,1777186232319,-772.18801884,7.244e-05,2]
[421158398,1777186232329,-772.18801884,7.244e-05,2]
[421158399,1777186232338,-772.18801884,7.244e-05,2]
[421158400,1777186232348,-19.39850971,7.244e-05,2]
[421158401,1777186232360,-752.78950913,7.244e-05,2]
[421158402,1777186232370,-66.77485832,7.244e-05,2]
[421158403,1777186232381,-705.41316052,7.244e-05,2]
[421158404,1777186232391,-590.50170258,7.244e-05,2]
[421158405,1777186232421,-181.68631626,7.244e-05,2]
[421158406,1777186232432,-358.72144666,7.244e-05,2]
[421158407,1777186232445,-323.3292545,7.244e-05,2]
[421158418,1777186237916,-90.13731768,7.244e-05,2]
[421158419,1777186237927,-772.18801884,7.244e-05,2]
[421158420,1777186237938,-118.94786695,7.244e-05,2]
[421158421,1777186238089,-653.24015189,7.244e-05,2]
[421158422,1777186238099,-772.18801884,7.244e-05,2]
[421158423,1777186238110,-772.18801884,7.244e-05,2]
[421158424,1777186238121,-772.18801884,7.244e-05,2]
[421158425,1777186238131,-772.18801884,7.244e-05,2]
[421158426,1777186238141,-772.18801884,7.244e-05,2]
[421158427,1777186238151,-772.18801884,7.244e-05,2]
[421158428,1777186238160,-772.18801884,7.244e-05,2]
[421158429,1777186238170,-772.18801884,7.244e-05,2]
[421158430,1777186238180,-772.18801884,7.244e-05,2]
[421158432,1777186238190,-772.18801884,7.244e-05,2]
[421158434,1777186238202,-772.18801884,7.244e-05,2]
[421158436,1777186238212,-772.18801884,7.244e-05,2]
[421158438,1777186238222,-772.18801884,7.244e-05,2]
[421158439,1777186238232,-772.18801884,7.244e-05,2]
[421158440,1777186238243,-772.18801884,7.244e-05,2]
[421158441,1777186238253,-772.18801889,7.244e-05,2]
[421158442,1777186238262,-772.18801889,7.244e-05,2]
[421158443,1777186238271,-772.18801889,7.244e-05,2]
[421158444,1777186238281,-249.0,7.244e-05,3]
[421158446,1777186238291,-164.0,7.244e-05,3]
[421158448,1777186238300,-21682.75341049,7.245e-05,2]
[421158453,1777186238340,-1222.12293849,7.245e-05,2]
[421158509,1777186240354,-11470.26924953,7.245e-05,2]
[421158514,1777186242937,-4919.50164026,7.245e-05,2]
[421158515,1777186243045,-443.4506406,7.245e-05,2]
[421158516,1777186243057,-5969.64666296,7.245e-05,2]
[421158517,1777186243070,-20279.50605604,7.245e-05,2]
[421158518,1777186243103,-658.88696035,7.245e-05,2]
[421158520,1777186244828,751.82607578,9.762e-05,21]
[421158522,1777186245742,-93535.52815398,7.245e-05,2]
[421158523,1777186245797,-35006.8680873,7.245e-05,2]
[421158524,1777186245807,-36.23399922,7.245e-05,2]
[421158525,1777186246278,-163.88297126,7.245e-05,2]
[421158526,1777186246290,-250.0,7.245e-05,2]
[421158527,1777186246300,-250.0,7.301e-05,2]
[421158528,1777186246310,-5295.054,7.343e-05,2]
[421158529,1777186246320,-341.731,7.343e-05,2]
[421158530,1777186246330,-536.56,7.344e-05,2]
[421158531,1777186246340,-5042.4734117,7.593e-05,2]
[421158532,1777186246350,-536.56,7.618e-05,2]
[421158533,1777186246360,-500.0,7.844e-05,2]
[421158534,1777186246373,-536.56,7.892e-05,2]
[421158535,1777186246382,-1680.0,7.967e-05,2]